{"text_format":"1","workbook":"xlsx","n_sheets":3,"sheets":["Trama","Validaciones","Fecha"],"not_rendered":{"charts":0,"images":3,"macros":1,"external_links":0,"defined_names":2,"comments":2,"pivot_tables":0},"unopened":[],"bounds":{"document_bytes":16777216,"sheet_cells":100000,"rows_first":2000,"rows_last":500,"rows_between":2000,"halvings":0,"cell_chars":16384,"cell_head_chars":4096},"cells_cut":0,"cells_raw":0,"read":"whole","date_system":"1900"}

{"sheet":"Trama","index":0,"n_rows":501,"n_cols":34,"rows_kept":501,"cut":false,"hidden":false,"merged":[]}
["CÓDIGO DE TIPO DOCUMENTO\n\nCelda tipo NÚMERO\nSolo se permite 1 : DNI, 2 : CE, 3: Otros (Carné de Identidad, PTP, Carnet Refugiado), 6: Pasaporte","NÚMERO DE DOCUMENTO DE IDENTIDAD\n\nCelda tipo TEXTO\nPara DNI: 8 dígitos, CE: 9 dígitos. Para los demás máximo 12 caracteres","APELLIDO PATERNO\n\nCelda tipo TEXTO\nMáximo 30 caracteres y solo se permite letras, vocales, tildes, apóstrofe, guión medio, diéresis y eñe","APELLIDO MATERNO\n\nCelda tipo TEXTO\nOPCIONAL, Máximo 30 caracteres y solo se permite letras, vocales, tildes, apóstrofe, guión medio, diéresis y eñe","PRIMER NOMBRE\n\nCelda tipo TEXTO\nMáximo 30 caracteres y solo se permite letras, vocales, tildes, apóstrofe, guión medio, diéresis y eñe","SEGUNDO NOMBRE\n\nCelda tipo TEXTO\nOPCIONAL, Máximo 30 caracteres y solo se permite letras, vocales, tildes, apóstrofe, guión medio, diéresis y eñe","FECHA DE NACIMIENTO\n\nCelda tipo FECHA\nSolo procesa formato DD/MM/YYYY","Sexo","NACIONALIDAD\n\nCelda tipo TEXTO","Ocupacion","Departamento","Provincia","Distrito","Direccion","TIPO DE TRABAJADOR\n\nE - Empleado\nO - Obrero\nOA - Obrero Alto Riesgo","MONEDA SUELDO\n\nCódigo 99: Soles","IMPORTE SUELDO\n\nCelda tipo NÚMERO\nNo acepta formato Moneda (eje. S/.)\nMínimo 40","Fecha Ing Seguro","Fecha Ing Empresa","Telefono","Observaciones","Después de llenar la planilla, valide los datos aquí.",null,null,null,null,0,null,null,null,"VALIDACIÓN DE DUPLICADOS DNI",{"$f":"IF(A2<>\"\",1,0)","v":0},0,{"$f":"AF1+AG1","v":0}]
[null,null,null,null,null,null,null,null,null,null,null,null,null,null,null,null,null,null,null,null,null,null,null,null,null,69]
[null,null,null,null,null,null,null,null,null,null,null,null,null,null,null,null,null,null,null,null,null,null,null,null,null,69]
[null,null,null,null,null,null,null,null,null,null,null,null,null,null,null,null,null,null,null,null,null,null,null,null,null,69]
[null,null,null,null,null,null,null,null,null,null,null,null,null,null,null,null,null,null,null,null,null,null,null,null,null,69]
[null,null,null,null,null,null,null,null,null,null,null,null,null,null,null,null,null,null,null,null,null,null,null,null,null,69]
[null,null,null,null,null,null,null,null,null,null,null,null,null,null,null,null,null,null,null,null,null,null,null,null,null,69]
[null,null,null,null,null,null,null,null,null,null,null,null,null,null,null,null,null,null,null,null,null,null,null,null,null,69]
[null,null,null,null,null,null,null,null,null,null,null,null,null,null,null,null,null,null,null,null,null,null,null,null,null,69]
[null,null,null,null,null,null,null,null,null,null,null,null,null,null,null,null,null,null,null,null,null,null,null,null,null,69]
[null,null,null,null,null,null,null,null,null,null,null,null,null,null,null,null,null,null,null,null,null,null,null,null,null,69]
[null,null,null,null,null,null,null,null,null,null,null,null,null,null,null,null,null,null,null,null,null,null,null,null,null,69]
[null,null,null,null,null,null,null,null,null,null,null,null,null,null,null,null,null,null,null,null,null,null,null,null,null,69]
[null,null,null,null,null,null,null,null,null,null,null,null,null,null,null,null,null,null,null,null,null,null,null,null,null,69]
[null,null,null,null,null,null,null,null,null,null,null,null,null,null,null,null,null,null,null,null,null,null,null,null,null,69]
[null,null,null,null,null,null,null,null,null,null,null,null,null,null,null,null,null,null,null,null,null,null,null,null,null,69]
[null,null,null,null,null,null,null,null,null,null,null,null,null,null,null,null,null,null,null,null,null,null,null,null,null,69]
[null,null,null,null,null,null,null,null,null,null,null,null,null,null,null,null,null,null,null,null,null,null,null,null,null,69]
[null,null,null,null,null,null,null,null,null,null,null,null,null,null,null,null,null,null,null,null,null,null,null,null,null,69]
[null,null,null,null,null,null,null,null,null,null,null,null,null,null,null,null,null,null,null,null,null,null,null,null,null,69]
[null,null,null,null,null,null,null,null,null,null,null,null,null,null,null,null,null,null,null,null,null,null,null,null,null,69]
[null,null,null,null,null,null,null,null,null,null,null,null,null,null,null,null,null,null,null,null,null,null,null,null,null,69]
[null,null,null,null,null,null,null,null,null,null,null,null,null,null,null,null,null,null,null,null,null,null,null,null,null,69]
[null,null,null,null,null,null,null,null,null,null,null,null,null,null,null,null,null,null,null,null,null,null,null,null,null,69]
[null,null,null,null,null,null,null,null,null,null,null,null,null,null,null,null,null,null,null,null,null,null,null,null,null,69]
[null,null,null,null,null,null,null,null,null,null,null,null,null,null,null,null,null,null,null,null,null,null,null,null,null,69]
[null,null,null,null,null,null,null,null,null,null,null,null,null,null,null,null,null,null,null,null,null,null,null,null,null,69]
[null,null,null,null,null,null,null,null,null,null,null,null,null,null,null,null,null,null,null,null,null,null,null,null,null,69]
[null,null,null,null,null,null,null,null,null,null,null,null,null,null,null,null,null,null,null,null,null,null,null,null,null,69]
[null,null,null,null,null,null,null,null,null,null,null,null,null,null,null,null,null,null,null,null,null,null,null,null,null,69]
[null,null,null,null,null,null,null,null,null,null,null,null,null,null,null,null,null,null,null,null,null,null,null,null,null,69]
[null,null,null,null,null,null,null,null,null,null,null,null,null,null,null,null,null,null,null,null,null,null,null,null,null,69]
[null,null,null,null,null,null,null,null,null,null,null,null,null,null,null,null,null,null,null,null,null,null,null,null,null,69]
[null,null,null,null,null,null,null,null,null,null,null,null,null,null,null,null,null,null,null,null,null,null,null,null,null,69]
[null,null,null,null,null,null,null,null,null,null,null,null,null,null,null,null,null,null,null,null,null,null,null,null,null,69]
[null,null,null,null,null,null,null,null,null,null,null,null,null,null,null,null,null,null,null,null,null,null,null,null,null,69]
[null,null,null,null,null,null,null,null,null,null,null,null,null,null,null,null,null,null,null,null,null,null,null,null,null,69]
[null,null,null,null,null,null,null,null,null,null,null,null,null,null,null,null,null,null,null,null,null,null,null,null,null,69]
[null,null,null,null,null,null,null,null,null,null,null,null,null,null,null,null,null,null,null,null,null,null,null,null,null,69]
[null,null,null,null,null,null,null,null,null,null,null,null,null,null,null,null,null,null,null,null,null,null,null,null,null,69]
[null,null,null,null,null,null,null,null,null,null,null,null,null,null,null,null,null,null,null,null,null,null,null,null,null,69]
[null,null,null,null,null,null,null,null,null,null,null,null,null,null,null,null,null,null,null,null,null,null,null,null,null,69]
[null,null,null,null,null,null,null,null,null,null,null,null,null,null,null,null,null,null,null,null,null,null,null,null,null,69]
[null,null,null,null,null,null,null,null,null,null,null,null,null,null,null,null,null,null,null,null,null,null,null,null,null,69]
[null,null,null,null,null,null,null,null,null,null,null,null,null,null,null,null,null,null,null,null,null,null,null,null,null,69]
[null,null,null,null,null,null,null,null,null,null,null,null,null,null,null,null,null,null,null,null,null,null,null,null,null,69]
[null,null,null,null,null,null,null,null,null,null,null,null,null,null,null,null,null,null,null,null,null,null,null,null,null,69]
[null,null,null,null,null,null,null,null,null,null,null,null,null,null,null,null,null,null,null,null,null,null,null,null,null,69]
[null,null,null,null,null,null,null,null,null,null,null,null,null,null,null,null,null,null,null,null,null,null,null,null,null,69]
[null,null,null,null,null,null,null,null,null,null,null,null,null,null,null,null,null,null,null,null,null,null,null,null,null,69]
[null,null,null,null,null,null,null,null,null,null,null,null,null,null,null,null,null,null,null,null,null,null,null,null,null,69]
[null,null,null,null,null,null,null,null,null,null,null,null,null,null,null,null,null,null,null,null,null,null,null,null,null,69]
[null,null,null,null,null,null,null,null,null,null,null,null,null,null,null,null,null,null,null,null,null,null,null,null,null,69]
[null,null,null,null,null,null,null,null,null,null,null,null,null,null,null,null,null,null,null,null,null,null,null,null,null,69]
[null,null,null,null,null,null,null,null,null,null,null,null,null,null,null,null,null,null,null,null,null,null,null,null,null,69]
[null,null,null,null,null,null,null,null,null,null,null,null,null,null,null,null,null,null,null,null,null,null,null,null,null,69]
[null,null,null,null,null,null,null,null,null,null,null,null,null,null,null,null,null,null,null,null,null,null,null,null,null,69]
[null,null,null,null,null,null,null,null,null,null,null,null,null,null,null,null,null,null,null,null,null,null,null,null,null,69]
[null,null,null,null,null,null,null,null,null,null,null,null,null,null,null,null,null,null,null,null,null,null,null,null,null,69]
[null,null,null,null,null,null,null,null,null,null,null,null,null,null,null,null,null,null,null,null,null,null,null,null,null,69]
[null,null,null,null,null,null,null,null,null,null,null,null,null,null,null,null,null,null,null,null,null,null,null,null,null,69]
[null,null,null,null,null,null,null,null,null,null,null,null,null,null,null,null,null,null,null,null,null,null,null,null,null,69]
[null,null,null,null,null,null,null,null,null,null,null,null,null,null,null,null,null,null,null,null,null,null,null,null,null,69]
[null,null,null,null,null,null,null,null,null,null,null,null,null,null,null,null,null,null,null,null,null,null,null,null,null,69]
[null,null,null,null,null,null,null,null,null,null,null,null,null,null,null,null,null,null,null,null,null,null,null,null,null,69]
[null,null,null,null,null,null,null,null,null,null,null,null,null,null,null,null,null,null,null,null,null,null,null,null,null,69]
[null,null,null,null,null,null,null,null,null,null,null,null,null,null,null,null,null,null,null,null,null,null,null,null,null,69]
[null,null,null,null,null,null,null,null,null,null,null,null,null,null,null,null,null,null,null,null,null,null,null,null,null,69]
[null,null,null,null,null,null,null,null,null,null,null,null,null,null,null,null,null,null,null,null,null,null,null,null,null,69]
[null,null,null,null,null,null,null,null,null,null,null,null,null,null,null,null,null,null,null,null,null,null,null,null,null,69]
[null,null,null,null,null,null,null,null,null,null,null,null,null,null,null,null,null,null,null,null,null,null,null,null,null,69]
[null,null,null,null,null,null,null,null,null,null,null,null,null,null,null,null,null,null,null,null,null,null,null,null,null,69]
[null,null,null,null,null,null,null,null,null,null,null,null,null,null,null,null,null,null,null,null,null,null,null,null,null,69]
[null,null,null,null,null,null,null,null,null,null,null,null,null,null,null,null,null,null,null,null,null,null,null,null,null,69]
[null,null,null,null,null,null,null,null,null,null,null,null,null,null,null,null,null,null,null,null,null,null,null,null,null,69]
[null,null,null,null,null,null,null,null,null,null,null,null,null,null,null,null,null,null,null,null,null,null,null,null,null,69]
[null,null,null,null,null,null,null,null,null,null,null,null,null,null,null,null,null,null,null,null,null,null,null,null,null,69]
[null,null,null,null,null,null,null,null,null,null,null,null,null,null,null,null,null,null,null,null,null,null,null,null,null,69]
[null,null,null,null,null,null,null,null,null,null,null,null,null,null,null,null,null,null,null,null,null,null,null,null,null,69]
[null,null,null,null,null,null,null,null,null,null,null,null,null,null,null,null,null,null,null,null,null,null,null,null,null,69]
[null,null,null,null,null,null,null,null,null,null,null,null,null,null,null,null,null,null,null,null,null,null,null,null,null,69]
[null,null,null,null,null,null,null,null,null,null,null,null,null,null,null,null,null,null,null,null,null,null,null,null,null,69]
[null,null,null,null,null,null,null,null,null,null,null,null,null,null,null,null,null,null,null,null,null,null,null,null,null,69]
[null,null,null,null,null,null,null,null,null,null,null,null,null,null,null,null,null,null,null,null,null,null,null,null,null,69]
[null,null,null,null,null,null,null,null,null,null,null,null,null,null,null,null,null,null,null,null,null,null,null,null,null,69]
[null,null,null,null,null,null,null,null,null,null,null,null,null,null,null,null,null,null,null,null,null,null,null,null,null,69]
[null,null,null,null,null,null,null,null,null,null,null,null,null,null,null,null,null,null,null,null,null,null,null,null,null,69]
[null,null,null,null,null,null,null,null,null,null,null,null,null,null,null,null,null,null,null,null,null,null,null,null,null,69]
[null,null,null,null,null,null,null,null,null,null,null,null,null,null,null,null,null,null,null,null,null,null,null,null,null,69]
[null,null,null,null,null,null,null,null,null,null,null,null,null,null,null,null,null,null,null,null,null,null,null,null,null,69]
[null,null,null,null,null,null,null,null,null,null,null,null,null,null,null,null,null,null,null,null,null,null,null,null,null,69]
[null,null,null,null,null,null,null,null,null,null,null,null,null,null,null,null,null,null,null,null,null,null,null,null,null,69]
[null,null,null,null,null,null,null,null,null,null,null,null,null,null,null,null,null,null,null,null,null,null,null,null,null,69]
[null,null,null,null,null,null,null,null,null,null,null,null,null,null,null,null,null,null,null,null,null,null,null,null,null,69]
[null,null,null,null,null,null,null,null,null,null,null,null,null,null,null,null,null,null,null,null,null,null,null,null,null,69]
[null,null,null,null,null,null,null,null,null,null,null,null,null,null,null,null,null,null,null,null,null,null,null,null,null,69]
[null,null,null,null,null,null,null,null,null,null,null,null,null,null,null,null,null,null,null,null,null,null,null,null,null,69]
[null,null,null,null,null,null,null,null,null,null,null,null,null,null,null,null,null,null,null,null,null,null,null,null,null,69]
[null,null,null,null,null,null,null,null,null,null,null,null,null,null,null,null,null,null,null,null,null,null,null,null,null,69]
[null,null,null,null,null,null,null,null,null,null,null,null,null,null,null,null,null,null,null,null,null,null,null,null,null,69]
[null,null,null,null,null,null,null,null,null,null,null,null,null,null,null,null,null,null,null,null,null,null,null,null,null,69]
[null,null,null,null,null,null,null,null,null,null,null,null,null,null,null,null,null,null,null,null,null,null,null,null,null,69]
[null,null,null,null,null,null,null,null,null,null,null,null,null,null,null,null,null,null,null,null,null,null,null,null,null,69]
[null,null,null,null,null,null,null,null,null,null,null,null,null,null,null,null,null,null,null,null,null,null,null,null,null,69]
[null,null,null,null,null,null,null,null,null,null,null,null,null,null,null,null,null,null,null,null,null,null,null,null,null,69]
[null,null,null,null,null,null,null,null,null,null,null,null,null,null,null,null,null,null,null,null,null,null,null,null,null,69]
[null,null,null,null,null,null,null,null,null,null,null,null,null,null,null,null,null,null,null,null,null,null,null,null,null,69]
[null,null,null,null,null,null,null,null,null,null,null,null,null,null,null,null,null,null,null,null,null,null,null,null,null,69]
[null,null,null,null,null,null,null,null,null,null,null,null,null,null,null,null,null,null,null,null,null,null,null,null,null,69]
[null,null,null,null,null,null,null,null,null,null,null,null,null,null,null,null,null,null,null,null,null,null,null,null,null,69]
[null,null,null,null,null,null,null,null,null,null,null,null,null,null,null,null,null,null,null,null,null,null,null,null,null,69]
[null,null,null,null,null,null,null,null,null,null,null,null,null,null,null,null,null,null,null,null,null,null,null,null,null,69]
[null,null,null,null,null,null,null,null,null,null,null,null,null,null,null,null,null,null,null,null,null,null,null,null,null,69]
[null,null,null,null,null,null,null,null,null,null,null,null,null,null,null,null,null,null,null,null,null,null,null,null,null,69]
[null,null,null,null,null,null,null,null,null,null,null,null,null,null,null,null,null,null,null,null,null,null,null,null,null,69]
[null,null,null,null,null,null,null,null,null,null,null,null,null,null,null,null,null,null,null,null,null,null,null,null,null,69]
[null,null,null,null,null,null,null,null,null,null,null,null,null,null,null,null,null,null,null,null,null,null,null,null,null,69]
[null,null,null,null,null,null,null,null,null,null,null,null,null,null,null,null,null,null,null,null,null,null,null,null,null,69]
[null,null,null,null,null,null,null,null,null,null,null,null,null,null,null,null,null,null,null,null,null,null,null,null,null,69]
[null,null,null,null,null,null,null,null,null,null,null,null,null,null,null,null,null,null,null,null,null,null,null,null,null,69]
[null,null,null,null,null,null,null,null,null,null,null,null,null,null,null,null,null,null,null,null,null,null,null,null,null,69]
[null,null,null,null,null,null,null,null,null,null,null,null,null,null,null,null,null,null,null,null,null,null,null,null,null,69]
[null,null,null,null,null,null,null,null,null,null,null,null,null,null,null,null,null,null,null,null,null,null,null,null,null,69]
[null,null,null,null,null,null,null,null,null,null,null,null,null,null,null,null,null,null,null,null,null,null,null,null,null,69]
[null,null,null,null,null,null,null,null,null,null,null,null,null,null,null,null,null,null,null,null,null,null,null,null,null,69]
[null,null,null,null,null,null,null,null,null,null,null,null,null,null,null,null,null,null,null,null,null,null,null,null,null,69]
[null,null,null,null,null,null,null,null,null,null,null,null,null,null,null,null,null,null,null,null,null,null,null,null,null,69]
[null,null,null,null,null,null,null,null,null,null,null,null,null,null,null,null,null,null,null,null,null,null,null,null,null,69]
[null,null,null,null,null,null,null,null,null,null,null,null,null,null,null,null,null,null,null,null,null,null,null,null,null,69]
[null,null,null,null,null,null,null,null,null,null,null,null,null,null,null,null,null,null,null,null,null,null,null,null,null,69]
[null,null,null,null,null,null,null,null,null,null,null,null,null,null,null,null,null,null,null,null,null,null,null,null,null,69]
[null,null,null,null,null,null,null,null,null,null,null,null,null,null,null,null,null,null,null,null,null,null,null,null,null,69]
[null,null,null,null,null,null,null,null,null,null,null,null,null,null,null,null,null,null,null,null,null,null,null,null,null,69]
[null,null,null,null,null,null,null,null,null,null,null,null,null,null,null,null,null,null,null,null,null,null,null,null,null,69]
[null,null,null,null,null,null,null,null,null,null,null,null,null,null,null,null,null,null,null,null,null,null,null,null,null,69]
[null,null,null,null,null,null,null,null,null,null,null,null,null,null,null,null,null,null,null,null,null,null,null,null,null,69]
[null,null,null,null,null,null,null,null,null,null,null,null,null,null,null,null,null,null,null,null,null,null,null,null,null,69]
[null,null,null,null,null,null,null,null,null,null,null,null,null,null,null,null,null,null,null,null,null,null,null,null,null,69]
[null,null,null,null,null,null,null,null,null,null,null,null,null,null,null,null,null,null,null,null,null,null,null,null,null,69]
[null,null,null,null,null,null,null,null,null,null,null,null,null,null,null,null,null,null,null,null,null,null,null,null,null,69]
[null,null,null,null,null,null,null,null,null,null,null,null,null,null,null,null,null,null,null,null,null,null,null,null,null,69]
[null,null,null,null,null,null,null,null,null,null,null,null,null,null,null,null,null,null,null,null,null,null,null,null,null,69]
[null,null,null,null,null,null,null,null,null,null,null,null,null,null,null,null,null,null,null,null,null,null,null,null,null,69]
[null,null,null,null,null,null,null,null,null,null,null,null,null,null,null,null,null,null,null,null,null,null,null,null,null,69]
[null,null,null,null,null,null,null,null,null,null,null,null,null,null,null,null,null,null,null,null,null,null,null,null,null,69]
[null,null,null,null,null,null,null,null,null,null,null,null,null,null,null,null,null,null,null,null,null,null,null,null,null,69]
[null,null,null,null,null,null,null,null,null,null,null,null,null,null,null,null,null,null,null,null,null,null,null,null,null,69]
[null,null,null,null,null,null,null,null,null,null,null,null,null,null,null,null,null,null,null,null,null,null,null,null,null,69]
[null,null,null,null,null,null,null,null,null,null,null,null,null,null,null,null,null,null,null,null,null,null,null,null,null,69]
[null,null,null,null,null,null,null,null,null,null,null,null,null,null,null,null,null,null,null,null,null,null,null,null,null,69]
[null,null,null,null,null,null,null,null,null,null,null,null,null,null,null,null,null,null,null,null,null,null,null,null,null,69]
[null,null,null,null,null,null,null,null,null,null,null,null,null,null,null,null,null,null,null,null,null,null,null,null,null,69]
[null,null,null,null,null,null,null,null,null,null,null,null,null,null,null,null,null,null,null,null,null,null,null,null,null,69]
[null,null,null,null,null,null,null,null,null,null,null,null,null,null,null,null,null,null,null,null,null,null,null,null,null,69]
[null,null,null,null,null,null,null,null,null,null,null,null,null,null,null,null,null,null,null,null,null,null,null,null,null,69]
[null,null,null,null,null,null,null,null,null,null,null,null,null,null,null,null,null,null,null,null,null,null,null,null,null,69]
[null,null,null,null,null,null,null,null,null,null,null,null,null,null,null,null,null,null,null,null,null,null,null,null,null,69]
[null,null,null,null,null,null,null,null,null,null,null,null,null,null,null,null,null,null,null,null,null,null,null,null,null,69]
[null,null,null,null,null,null,null,null,null,null,null,null,null,null,null,null,null,null,null,null,null,null,null,null,null,69]
[null,null,null,null,null,null,null,null,null,null,null,null,null,null,null,null,null,null,null,null,null,null,null,null,null,69]
[null,null,null,null,null,null,null,null,null,null,null,null,null,null,null,null,null,null,null,null,null,null,null,null,null,69]
[null,null,null,null,null,null,null,null,null,null,null,null,null,null,null,null,null,null,null,null,null,null,null,null,null,69]
[null,null,null,null,null,null,null,null,null,null,null,null,null,null,null,null,null,null,null,null,null,null,null,null,null,69]
[null,null,null,null,null,null,null,null,null,null,null,null,null,null,null,null,null,null,null,null,null,null,null,null,null,69]
[null,null,null,null,null,null,null,null,null,null,null,null,null,null,null,null,null,null,null,null,null,null,null,null,null,69]
[null,null,null,null,null,null,null,null,null,null,null,null,null,null,null,null,null,null,null,null,null,null,null,null,null,69]
[null,null,null,null,null,null,null,null,null,null,null,null,null,null,null,null,null,null,null,null,null,null,null,null,null,69]
[null,null,null,null,null,null,null,null,null,null,null,null,null,null,null,null,null,null,null,null,null,null,null,null,null,69]
[null,null,null,null,null,null,null,null,null,null,null,null,null,null,null,null,null,null,null,null,null,null,null,null,null,69]
[null,null,null,null,null,null,null,null,null,null,null,null,null,null,null,null,null,null,null,null,null,null,null,null,null,69]
[null,null,null,null,null,null,null,null,null,null,null,null,null,null,null,null,null,null,null,null,null,null,null,null,null,69]
[null,null,null,null,null,null,null,null,null,null,null,null,null,null,null,null,null,null,null,null,null,null,null,null,null,69]
[null,null,null,null,null,null,null,null,null,null,null,null,null,null,null,null,null,null,null,null,null,null,null,null,null,69]
[null,null,null,null,null,null,null,null,null,null,null,null,null,null,null,null,null,null,null,null,null,null,null,null,null,69]
[null,null,null,null,null,null,null,null,null,null,null,null,null,null,null,null,null,null,null,null,null,null,null,null,null,69]
[null,null,null,null,null,null,null,null,null,null,null,null,null,null,null,null,null,null,null,null,null,null,null,null,null,69]
[null,null,null,null,null,null,null,null,null,null,null,null,null,null,null,null,null,null,null,null,null,null,null,null,null,69]
[null,null,null,null,null,null,null,null,null,null,null,null,null,null,null,null,null,null,null,null,null,null,null,null,null,69]
[null,null,null,null,null,null,null,null,null,null,null,null,null,null,null,null,null,null,null,null,null,null,null,null,null,69]
[null,null,null,null,null,null,null,null,null,null,null,null,null,null,null,null,null,null,null,null,null,null,null,null,null,69]
[null,null,null,null,null,null,null,null,null,null,null,null,null,null,null,null,null,null,null,null,null,null,null,null,null,69]
[null,null,null,null,null,null,null,null,null,null,null,null,null,null,null,null,null,null,null,null,null,null,null,null,null,69]
[null,null,null,null,null,null,null,null,null,null,null,null,null,null,null,null,null,null,null,null,null,null,null,null,null,69]
[null,null,null,null,null,null,null,null,null,null,null,null,null,null,null,null,null,null,null,null,null,null,null,null,null,69]
[null,null,null,null,null,null,null,null,null,null,null,null,null,null,null,null,null,null,null,null,null,null,null,null,null,69]
[null,null,null,null,null,null,null,null,null,null,null,null,null,null,null,null,null,null,null,null,null,null,null,null,null,69]
[null,null,null,null,null,null,null,null,null,null,null,null,null,null,null,null,null,null,null,null,null,null,null,null,null,69]
[null,null,null,null,null,null,null,null,null,null,null,null,null,null,null,null,null,null,null,null,null,null,null,null,null,69]
[null,null,null,null,null,null,null,null,null,null,null,null,null,null,null,null,null,null,null,null,null,null,null,null,null,69]
[null,null,null,null,null,null,null,null,null,null,null,null,null,null,null,null,null,null,null,null,null,null,null,null,null,69]
[null,null,null,null,null,null,null,null,null,null,null,null,null,null,null,null,null,null,null,null,null,null,null,null,null,69]
[null,null,null,null,null,null,null,null,null,null,null,null,null,null,null,null,null,null,null,null,null,null,null,null,null,69]
[null,null,null,null,null,null,null,null,null,null,null,null,null,null,null,null,null,null,null,null,null,null,null,null,null,69]
[null,null,null,null,null,null,null,null,null,null,null,null,null,null,null,null,null,null,null,null,null,null,null,null,null,69]
[null,null,null,null,null,null,null,null,null,null,null,null,null,null,null,null,null,null,null,null,null,null,null,null,null,69]
[null,null,null,null,null,null,null,null,null,null,null,null,null,null,null,null,null,null,null,null,null,null,null,null,null,69]
[null,null,null,null,null,null,null,null,null,null,null,null,null,null,null,null,null,null,null,null,null,null,null,null,null,69]
[null,null,null,null,null,null,null,null,null,null,null,null,null,null,null,null,null,null,null,null,null,null,null,null,null,69]
[null,null,null,null,null,null,null,null,null,null,null,null,null,null,null,null,null,null,null,null,null,null,null,null,null,69]
[null,null,null,null,null,null,null,null,null,null,null,null,null,null,null,null,null,null,null,null,null,null,null,null,null,69]
[null,null,null,null,null,null,null,null,null,null,null,null,null,null,null,null,null,null,null,null,null,null,null,null,null,69]
[null,null,null,null,null,null,null,null,null,null,null,null,null,null,null,null,null,null,null,null,null,null,null,null,null,69]
[null,null,null,null,null,null,null,null,null,null,null,null,null,null,null,null,null,null,null,null,null,null,null,null,null,69]
[null,null,null,null,null,null,null,null,null,null,null,null,null,null,null,null,null,null,null,null,null,null,null,null,null,69]
[null,null,null,null,null,null,null,null,null,null,null,null,null,null,null,null,null,null,null,null,null,null,null,null,null,69]
[null,null,null,null,null,null,null,null,null,null,null,null,null,null,null,null,null,null,null,null,null,null,null,null,null,69]
[null,null,null,null,null,null,null,null,null,null,null,null,null,null,null,null,null,null,null,null,null,null,null,null,null,69]
[null,null,null,null,null,null,null,null,null,null,null,null,null,null,null,null,null,null,null,null,null,null,null,null,null,69]
[null,null,null,null,null,null,null,null,null,null,null,null,null,null,null,null,null,null,null,null,null,null,null,null,null,69]
[null,null,null,null,null,null,null,null,null,null,null,null,null,null,null,null,null,null,null,null,null,null,null,null,null,69]
[null,null,null,null,null,null,null,null,null,null,null,null,null,null,null,null,null,null,null,null,null,null,null,null,null,69]
[null,null,null,null,null,null,null,null,null,null,null,null,null,null,null,null,null,null,null,null,null,null,null,null,null,69]
[null,null,null,null,null,null,null,null,null,null,null,null,null,null,null,null,null,null,null,null,null,null,null,null,null,69]
[null,null,null,null,null,null,null,null,null,null,null,null,null,null,null,null,null,null,null,null,null,null,null,null,null,69]
[null,null,null,null,null,null,null,null,null,null,null,null,null,null,null,null,null,null,null,null,null,null,null,null,null,69]
[null,null,null,null,null,null,null,null,null,null,null,null,null,null,null,null,null,null,null,null,null,null,null,null,null,69]
[null,null,null,null,null,null,null,null,null,null,null,null,null,null,null,null,null,null,null,null,null,null,null,null,null,69]
[null,null,null,null,null,null,null,null,null,null,null,null,null,null,null,null,null,null,null,null,null,null,null,null,null,69]
[null,null,null,null,null,null,null,null,null,null,null,null,null,null,null,null,null,null,null,null,null,null,null,null,null,69]
[null,null,null,null,null,null,null,null,null,null,null,null,null,null,null,null,null,null,null,null,null,null,null,null,null,69]
[null,null,null,null,null,null,null,null,null,null,null,null,null,null,null,null,null,null,null,null,null,null,null,null,null,69]
[null,null,null,null,null,null,null,null,null,null,null,null,null,null,null,null,null,null,null,null,null,null,null,null,null,69]
[null,null,null,null,null,null,null,null,null,null,null,null,null,null,null,null,null,null,null,null,null,null,null,null,null,69]
[null,null,null,null,null,null,null,null,null,null,null,null,null,null,null,null,null,null,null,null,null,null,null,null,null,69]
[null,null,null,null,null,null,null,null,null,null,null,null,null,null,null,null,null,null,null,null,null,null,null,null,null,69]
[null,null,null,null,null,null,null,null,null,null,null,null,null,null,null,null,null,null,null,null,null,null,null,null,null,69]
[null,null,null,null,null,null,null,null,null,null,null,null,null,null,null,null,null,null,null,null,null,null,null,null,null,69]
[null,null,null,null,null,null,null,null,null,null,null,null,null,null,null,null,null,null,null,null,null,null,null,null,null,69]
[null,null,null,null,null,null,null,null,null,null,null,null,null,null,null,null,null,null,null,null,null,null,null,null,null,69]
[null,null,null,null,null,null,null,null,null,null,null,null,null,null,null,null,null,null,null,null,null,null,null,null,null,69]
[null,null,null,null,null,null,null,null,null,null,null,null,null,null,null,null,null,null,null,null,null,null,null,null,null,69]
[null,null,null,null,null,null,null,null,null,null,null,null,null,null,null,null,null,null,null,null,null,null,null,null,null,69]
[null,null,null,null,null,null,null,null,null,null,null,null,null,null,null,null,null,null,null,null,null,null,null,null,null,69]
[null,null,null,null,null,null,null,null,null,null,null,null,null,null,null,null,null,null,null,null,null,null,null,null,null,69]
[null,null,null,null,null,null,null,null,null,null,null,null,null,null,null,null,null,null,null,null,null,null,null,null,null,69]
[null,null,null,null,null,null,null,null,null,null,null,null,null,null,null,null,null,null,null,null,null,null,null,null,null,69]
[null,null,null,null,null,null,null,null,null,null,null,null,null,null,null,null,null,null,null,null,null,null,null,null,null,69]
[null,null,null,null,null,null,null,null,null,null,null,null,null,null,null,null,null,null,null,null,null,null,null,null,null,69]
[null,null,null,null,null,null,null,null,null,null,null,null,null,null,null,null,null,null,null,null,null,null,null,null,null,69]
[null,null,null,null,null,null,null,null,null,null,null,null,null,null,null,null,null,null,null,null,null,null,null,null,null,69]
[null,null,null,null,null,null,null,null,null,null,null,null,null,null,null,null,null,null,null,null,null,null,null,null,null,69]
[null,null,null,null,null,null,null,null,null,null,null,null,null,null,null,null,null,null,null,null,null,null,null,null,null,69]
[null,null,null,null,null,null,null,null,null,null,null,null,null,null,null,null,null,null,null,null,null,null,null,null,null,69]
[null,null,null,null,null,null,null,null,null,null,null,null,null,null,null,null,null,null,null,null,null,null,null,null,null,69]
[null,null,null,null,null,null,null,null,null,null,null,null,null,null,null,null,null,null,null,null,null,null,null,null,null,69]
[null,null,null,null,null,null,null,null,null,null,null,null,null,null,null,null,null,null,null,null,null,null,null,null,null,69]
[null,null,null,null,null,null,null,null,null,null,null,null,null,null,null,null,null,null,null,null,null,null,null,null,null,69]
[null,null,null,null,null,null,null,null,null,null,null,null,null,null,null,null,null,null,null,null,null,null,null,null,null,69]
[null,null,null,null,null,null,null,null,null,null,null,null,null,null,null,null,null,null,null,null,null,null,null,null,null,69]
[null,null,null,null,null,null,null,null,null,null,null,null,null,null,null,null,null,null,null,null,null,null,null,null,null,69]
[null,null,null,null,null,null,null,null,null,null,null,null,null,null,null,null,null,null,null,null,null,null,null,null,null,69]
[null,null,null,null,null,null,null,null,null,null,null,null,null,null,null,null,null,null,null,null,null,null,null,null,null,69]
[null,null,null,null,null,null,null,null,null,null,null,null,null,null,null,null,null,null,null,null,null,null,null,null,null,69]
[null,null,null,null,null,null,null,null,null,null,null,null,null,null,null,null,null,null,null,null,null,null,null,null,null,69]
[null,null,null,null,null,null,null,null,null,null,null,null,null,null,null,null,null,null,null,null,null,null,null,null,null,69]
[null,null,null,null,null,null,null,null,null,null,null,null,null,null,null,null,null,null,null,null,null,null,null,null,null,69]
[null,null,null,null,null,null,null,null,null,null,null,null,null,null,null,null,null,null,null,null,null,null,null,null,null,69]
[null,null,null,null,null,null,null,null,null,null,null,null,null,null,null,null,null,null,null,null,null,null,null,null,null,69]
[null,null,null,null,null,null,null,null,null,null,null,null,null,null,null,null,null,null,null,null,null,null,null,null,null,69]
[null,null,null,null,null,null,null,null,null,null,null,null,null,null,null,null,null,null,null,null,null,null,null,null,null,69]
[null,null,null,null,null,null,null,null,null,null,null,null,null,null,null,null,null,null,null,null,null,null,null,null,null,69]
[null,null,null,null,null,null,null,null,null,null,null,null,null,null,null,null,null,null,null,null,null,null,null,null,null,69]
[null,null,null,null,null,null,null,null,null,null,null,null,null,null,null,null,null,null,null,null,null,null,null,null,null,69]
[null,null,null,null,null,null,null,null,null,null,null,null,null,null,null,null,null,null,null,null,null,null,null,null,null,69]
[null,null,null,null,null,null,null,null,null,null,null,null,null,null,null,null,null,null,null,null,null,null,null,null,null,69]
[null,null,null,null,null,null,null,null,null,null,null,null,null,null,null,null,null,null,null,null,null,null,null,null,null,69]
[null,null,null,null,null,null,null,null,null,null,null,null,null,null,null,null,null,null,null,null,null,null,null,null,null,69]
[null,null,null,null,null,null,null,null,null,null,null,null,null,null,null,null,null,null,null,null,null,null,null,null,null,69]
[null,null,null,null,null,null,null,null,null,null,null,null,null,null,null,null,null,null,null,null,null,null,null,null,null,69]
[null,null,null,null,null,null,null,null,null,null,null,null,null,null,null,null,null,null,null,null,null,null,null,null,null,69]
[null,null,null,null,null,null,null,null,null,null,null,null,null,null,null,null,null,null,null,null,null,null,null,null,null,69]
[null,null,null,null,null,null,null,null,null,null,null,null,null,null,null,null,null,null,null,null,null,null,null,null,null,69]
[null,null,null,null,null,null,null,null,null,null,null,null,null,null,null,null,null,null,null,null,null,null,null,null,null,69]
[null,null,null,null,null,null,null,null,null,null,null,null,null,null,null,null,null,null,null,null,null,null,null,null,null,69]
[null,null,null,null,null,null,null,null,null,null,null,null,null,null,null,null,null,null,null,null,null,null,null,null,null,69]
[null,null,null,null,null,null,null,null,null,null,null,null,null,null,null,null,null,null,null,null,null,null,null,null,null,69]
[null,null,null,null,null,null,null,null,null,null,null,null,null,null,null,null,null,null,null,null,null,null,null,null,null,69]
[null,null,null,null,null,null,null,null,null,null,null,null,null,null,null,null,null,null,null,null,null,null,null,null,null,69]
[null,null,null,null,null,null,null,null,null,null,null,null,null,null,null,null,null,null,null,null,null,null,null,null,null,69]
[null,null,null,null,null,null,null,null,null,null,null,null,null,null,null,null,null,null,null,null,null,null,null,null,null,69]
[null,null,null,null,null,null,null,null,null,null,null,null,null,null,null,null,null,null,null,null,null,null,null,null,null,69]
[null,null,null,null,null,null,null,null,null,null,null,null,null,null,null,null,null,null,null,null,null,null,null,null,null,69]
[null,null,null,null,null,null,null,null,null,null,null,null,null,null,null,null,null,null,null,null,null,null,null,null,null,69]
[null,null,null,null,null,null,null,null,null,null,null,null,null,null,null,null,null,null,null,null,null,null,null,null,null,69]
[null,null,null,null,null,null,null,null,null,null,null,null,null,null,null,null,null,null,null,null,null,null,null,null,null,69]
[null,null,null,null,null,null,null,null,null,null,null,null,null,null,null,null,null,null,null,null,null,null,null,null,null,69]
[null,null,null,null,null,null,null,null,null,null,null,null,null,null,null,null,null,null,null,null,null,null,null,null,null,69]
[null,null,null,null,null,null,null,null,null,null,null,null,null,null,null,null,null,null,null,null,null,null,null,null,null,69]
[null,null,null,null,null,null,null,null,null,null,null,null,null,null,null,null,null,null,null,null,null,null,null,null,null,69]
[null,null,null,null,null,null,null,null,null,null,null,null,null,null,null,null,null,null,null,null,null,null,null,null,null,69]
[null,null,null,null,null,null,null,null,null,null,null,null,null,null,null,null,null,null,null,null,null,null,null,null,null,69]
[null,null,null,null,null,null,null,null,null,null,null,null,null,null,null,null,null,null,null,null,null,null,null,null,null,69]
[null,null,null,null,null,null,null,null,null,null,null,null,null,null,null,null,null,null,null,null,null,null,null,null,null,69]
[null,null,null,null,null,null,null,null,null,null,null,null,null,null,null,null,null,null,null,null,null,null,null,null,null,69]
[null,null,null,null,null,null,null,null,null,null,null,null,null,null,null,null,null,null,null,null,null,null,null,null,null,69]
[null,null,null,null,null,null,null,null,null,null,null,null,null,null,null,null,null,null,null,null,null,null,null,null,null,69]
[null,null,null,null,null,null,null,null,null,null,null,null,null,null,null,null,null,null,null,null,null,null,null,null,null,69]
[null,null,null,null,null,null,null,null,null,null,null,null,null,null,null,null,null,null,null,null,null,null,null,null,null,69]
[null,null,null,null,null,null,null,null,null,null,null,null,null,null,null,null,null,null,null,null,null,null,null,null,null,69]
[null,null,null,null,null,null,null,null,null,null,null,null,null,null,null,null,null,null,null,null,null,null,null,null,null,69]
[null,null,null,null,null,null,null,null,null,null,null,null,null,null,null,null,null,null,null,null,null,null,null,null,null,69]
[null,null,null,null,null,null,null,null,null,null,null,null,null,null,null,null,null,null,null,null,null,null,null,null,null,69]
[null,null,null,null,null,null,null,null,null,null,null,null,null,null,null,null,null,null,null,null,null,null,null,null,null,69]
[null,null,null,null,null,null,null,null,null,null,null,null,null,null,null,null,null,null,null,null,null,null,null,null,null,69]
[null,null,null,null,null,null,null,null,null,null,null,null,null,null,null,null,null,null,null,null,null,null,null,null,null,69]
[null,null,null,null,null,null,null,null,null,null,null,null,null,null,null,null,null,null,null,null,null,null,null,null,null,69]
[null,null,null,null,null,null,null,null,null,null,null,null,null,null,null,null,null,null,null,null,null,null,null,null,null,69]
[null,null,null,null,null,null,null,null,null,null,null,null,null,null,null,null,null,null,null,null,null,null,null,null,null,69]
[null,null,null,null,null,null,null,null,null,null,null,null,null,null,null,null,null,null,null,null,null,null,null,null,null,69]
[null,null,null,null,null,null,null,null,null,null,null,null,null,null,null,null,null,null,null,null,null,null,null,null,null,69]
[null,null,null,null,null,null,null,null,null,null,null,null,null,null,null,null,null,null,null,null,null,null,null,null,null,69]
[null,null,null,null,null,null,null,null,null,null,null,null,null,null,null,null,null,null,null,null,null,null,null,null,null,69]
[null,null,null,null,null,null,null,null,null,null,null,null,null,null,null,null,null,null,null,null,null,null,null,null,null,69]
[null,null,null,null,null,null,null,null,null,null,null,null,null,null,null,null,null,null,null,null,null,null,null,null,null,69]
[null,null,null,null,null,null,null,null,null,null,null,null,null,null,null,null,null,null,null,null,null,null,null,null,null,69]
[null,null,null,null,null,null,null,null,null,null,null,null,null,null,null,null,null,null,null,null,null,null,null,null,null,69]
[null,null,null,null,null,null,null,null,null,null,null,null,null,null,null,null,null,null,null,null,null,null,null,null,null,69]
[null,null,null,null,null,null,null,null,null,null,null,null,null,null,null,null,null,null,null,null,null,null,null,null,null,69]
[null,null,null,null,null,null,null,null,null,null,null,null,null,null,null,null,null,null,null,null,null,null,null,null,null,69]
[null,null,null,null,null,null,null,null,null,null,null,null,null,null,null,null,null,null,null,null,null,null,null,null,null,69]
[null,null,null,null,null,null,null,null,null,null,null,null,null,null,null,null,null,null,null,null,null,null,null,null,null,69]
[null,null,null,null,null,null,null,null,null,null,null,null,null,null,null,null,null,null,null,null,null,null,null,null,null,69]
[null,null,null,null,null,null,null,null,null,null,null,null,null,null,null,null,null,null,null,null,null,null,null,null,null,69]
[null,null,null,null,null,null,null,null,null,null,null,null,null,null,null,null,null,null,null,null,null,null,null,null,null,69]
[null,null,null,null,null,null,null,null,null,null,null,null,null,null,null,null,null,null,null,null,null,null,null,null,null,69]
[null,null,null,null,null,null,null,null,null,null,null,null,null,null,null,null,null,null,null,null,null,null,null,null,null,69]
[null,null,null,null,null,null,null,null,null,null,null,null,null,null,null,null,null,null,null,null,null,null,null,null,null,69]
[null,null,null,null,null,null,null,null,null,null,null,null,null,null,null,null,null,null,null,null,null,null,null,null,null,69]
[null,null,null,null,null,null,null,null,null,null,null,null,null,null,null,null,null,null,null,null,null,null,null,null,null,69]
[null,null,null,null,null,null,null,null,null,null,null,null,null,null,null,null,null,null,null,null,null,null,null,null,null,69]
[null,null,null,null,null,null,null,null,null,null,null,null,null,null,null,null,null,null,null,null,null,null,null,null,null,69]
[null,null,null,null,null,null,null,null,null,null,null,null,null,null,null,null,null,null,null,null,null,null,null,null,null,69]
[null,null,null,null,null,null,null,null,null,null,null,null,null,null,null,null,null,null,null,null,null,null,null,null,null,69]
[null,null,null,null,null,null,null,null,null,null,null,null,null,null,null,null,null,null,null,null,null,null,null,null,null,69]
[null,null,null,null,null,null,null,null,null,null,null,null,null,null,null,null,null,null,null,null,null,null,null,null,null,69]
[null,null,null,null,null,null,null,null,null,null,null,null,null,null,null,null,null,null,null,null,null,null,null,null,null,69]
[null,null,null,null,null,null,null,null,null,null,null,null,null,null,null,null,null,null,null,null,null,null,null,null,null,69]
[null,null,null,null,null,null,null,null,null,null,null,null,null,null,null,null,null,null,null,null,null,null,null,null,null,69]
[null,null,null,null,null,null,null,null,null,null,null,null,null,null,null,null,null,null,null,null,null,null,null,null,null,69]
[null,null,null,null,null,null,null,null,null,null,null,null,null,null,null,null,null,null,null,null,null,null,null,null,null,69]
[null,null,null,null,null,null,null,null,null,null,null,null,null,null,null,null,null,null,null,null,null,null,null,null,null,69]
[null,null,null,null,null,null,null,null,null,null,null,null,null,null,null,null,null,null,null,null,null,null,null,null,null,69]
[null,null,null,null,null,null,null,null,null,null,null,null,null,null,null,null,null,null,null,null,null,null,null,null,null,69]
[null,null,null,null,null,null,null,null,null,null,null,null,null,null,null,null,null,null,null,null,null,null,null,null,null,69]
[null,null,null,null,null,null,null,null,null,null,null,null,null,null,null,null,null,null,null,null,null,null,null,null,null,69]
[null,null,null,null,null,null,null,null,null,null,null,null,null,null,null,null,null,null,null,null,null,null,null,null,null,69]
[null,null,null,null,null,null,null,null,null,null,null,null,null,null,null,null,null,null,null,null,null,null,null,null,null,69]
[null,null,null,null,null,null,null,null,null,null,null,null,null,null,null,null,null,null,null,null,null,null,null,null,null,69]
[null,null,null,null,null,null,null,null,null,null,null,null,null,null,null,null,null,null,null,null,null,null,null,null,null,69]
[null,null,null,null,null,null,null,null,null,null,null,null,null,null,null,null,null,null,null,null,null,null,null,null,null,69]
[null,null,null,null,null,null,null,null,null,null,null,null,null,null,null,null,null,null,null,null,null,null,null,null,null,69]
[null,null,null,null,null,null,null,null,null,null,null,null,null,null,null,null,null,null,null,null,null,null,null,null,null,69]
[null,null,null,null,null,null,null,null,null,null,null,null,null,null,null,null,null,null,null,null,null,null,null,null,null,69]
[null,null,null,null,null,null,null,null,null,null,null,null,null,null,null,null,null,null,null,null,null,null,null,null,null,69]
[null,null,null,null,null,null,null,null,null,null,null,null,null,null,null,null,null,null,null,null,null,null,null,null,null,69]
[null,null,null,null,null,null,null,null,null,null,null,null,null,null,null,null,null,null,null,null,null,null,null,null,null,69]
[null,null,null,null,null,null,null,null,null,null,null,null,null,null,null,null,null,null,null,null,null,null,null,null,null,69]
[null,null,null,null,null,null,null,null,null,null,null,null,null,null,null,null,null,null,null,null,null,null,null,null,null,69]
[null,null,null,null,null,null,null,null,null,null,null,null,null,null,null,null,null,null,null,null,null,null,null,null,null,69]
[null,null,null,null,null,null,null,null,null,null,null,null,null,null,null,null,null,null,null,null,null,null,null,null,null,69]
[null,null,null,null,null,null,null,null,null,null,null,null,null,null,null,null,null,null,null,null,null,null,null,null,null,69]
[null,null,null,null,null,null,null,null,null,null,null,null,null,null,null,null,null,null,null,null,null,null,null,null,null,69]
[null,null,null,null,null,null,null,null,null,null,null,null,null,null,null,null,null,null,null,null,null,null,null,null,null,69]
[null,null,null,null,null,null,null,null,null,null,null,null,null,null,null,null,null,null,null,null,null,null,null,null,null,69]
[null,null,null,null,null,null,null,null,null,null,null,null,null,null,null,null,null,null,null,null,null,null,null,null,null,69]
[null,null,null,null,null,null,null,null,null,null,null,null,null,null,null,null,null,null,null,null,null,null,null,null,null,69]
[null,null,null,null,null,null,null,null,null,null,null,null,null,null,null,null,null,null,null,null,null,null,null,null,null,69]
[null,null,null,null,null,null,null,null,null,null,null,null,null,null,null,null,null,null,null,null,null,null,null,null,null,69]
[null,null,null,null,null,null,null,null,null,null,null,null,null,null,null,null,null,null,null,null,null,null,null,null,null,69]
[null,null,null,null,null,null,null,null,null,null,null,null,null,null,null,null,null,null,null,null,null,null,null,null,null,69]
[null,null,null,null,null,null,null,null,null,null,null,null,null,null,null,null,null,null,null,null,null,null,null,null,null,69]
[null,null,null,null,null,null,null,null,null,null,null,null,null,null,null,null,null,null,null,null,null,null,null,null,null,69]
[null,null,null,null,null,null,null,null,null,null,null,null,null,null,null,null,null,null,null,null,null,null,null,null,null,69]
[null,null,null,null,null,null,null,null,null,null,null,null,null,null,null,null,null,null,null,null,null,null,null,null,null,69]
[null,null,null,null,null,null,null,null,null,null,null,null,null,null,null,null,null,null,null,null,null,null,null,null,null,69]
[null,null,null,null,null,null,null,null,null,null,null,null,null,null,null,null,null,null,null,null,null,null,null,null,null,69]
[null,null,null,null,null,null,null,null,null,null,null,null,null,null,null,null,null,null,null,null,null,null,null,null,null,69]
[null,null,null,null,null,null,null,null,null,null,null,null,null,null,null,null,null,null,null,null,null,null,null,null,null,69]
[null,null,null,null,null,null,null,null,null,null,null,null,null,null,null,null,null,null,null,null,null,null,null,null,null,69]
[null,null,null,null,null,null,null,null,null,null,null,null,null,null,null,null,null,null,null,null,null,null,null,null,null,69]
[null,null,null,null,null,null,null,null,null,null,null,null,null,null,null,null,null,null,null,null,null,null,null,null,null,69]
[null,null,null,null,null,null,null,null,null,null,null,null,null,null,null,null,null,null,null,null,null,null,null,null,null,69]
[null,null,null,null,null,null,null,null,null,null,null,null,null,null,null,null,null,null,null,null,null,null,null,null,null,69]
[null,null,null,null,null,null,null,null,null,null,null,null,null,null,null,null,null,null,null,null,null,null,null,null,null,69]
[null,null,null,null,null,null,null,null,null,null,null,null,null,null,null,null,null,null,null,null,null,null,null,null,null,69]
[null,null,null,null,null,null,null,null,null,null,null,null,null,null,null,null,null,null,null,null,null,null,null,null,null,69]
[null,null,null,null,null,null,null,null,null,null,null,null,null,null,null,null,null,null,null,null,null,null,null,null,null,69]
[null,null,null,null,null,null,null,null,null,null,null,null,null,null,null,null,null,null,null,null,null,null,null,null,null,69]
[null,null,null,null,null,null,null,null,null,null,null,null,null,null,null,null,null,null,null,null,null,null,null,null,null,69]
[null,null,null,null,null,null,null,null,null,null,null,null,null,null,null,null,null,null,null,null,null,null,null,null,null,69]
[null,null,null,null,null,null,null,null,null,null,null,null,null,null,null,null,null,null,null,null,null,null,null,null,null,69]
[null,null,null,null,null,null,null,null,null,null,null,null,null,null,null,null,null,null,null,null,null,null,null,null,null,69]
[null,null,null,null,null,null,null,null,null,null,null,null,null,null,null,null,null,null,null,null,null,null,null,null,null,69]
[null,null,null,null,null,null,null,null,null,null,null,null,null,null,null,null,null,null,null,null,null,null,null,null,null,69]
[null,null,null,null,null,null,null,null,null,null,null,null,null,null,null,null,null,null,null,null,null,null,null,null,null,69]
[null,null,null,null,null,null,null,null,null,null,null,null,null,null,null,null,null,null,null,null,null,null,null,null,null,69]
[null,null,null,null,null,null,null,null,null,null,null,null,null,null,null,null,null,null,null,null,null,null,null,null,null,69]
[null,null,null,null,null,null,null,null,null,null,null,null,null,null,null,null,null,null,null,null,null,null,null,null,null,69]
[null,null,null,null,null,null,null,null,null,null,null,null,null,null,null,null,null,null,null,null,null,null,null,null,null,69]
[null,null,null,null,null,null,null,null,null,null,null,null,null,null,null,null,null,null,null,null,null,null,null,null,null,69]
[null,null,null,null,null,null,null,null,null,null,null,null,null,null,null,null,null,null,null,null,null,null,null,null,null,69]
[null,null,null,null,null,null,null,null,null,null,null,null,null,null,null,null,null,null,null,null,null,null,null,null,null,69]
[null,null,null,null,null,null,null,null,null,null,null,null,null,null,null,null,null,null,null,null,null,null,null,null,null,69]
[null,null,null,null,null,null,null,null,null,null,null,null,null,null,null,null,null,null,null,null,null,null,null,null,null,69]
[null,null,null,null,null,null,null,null,null,null,null,null,null,null,null,null,null,null,null,null,null,null,null,null,null,69]
[null,null,null,null,null,null,null,null,null,null,null,null,null,null,null,null,null,null,null,null,null,null,null,null,null,69]
[null,null,null,null,null,null,null,null,null,null,null,null,null,null,null,null,null,null,null,null,null,null,null,null,null,69]
[null,null,null,null,null,null,null,null,null,null,null,null,null,null,null,null,null,null,null,null,null,null,null,null,null,69]
[null,null,null,null,null,null,null,null,null,null,null,null,null,null,null,null,null,null,null,null,null,null,null,null,null,69]
[null,null,null,null,null,null,null,null,null,null,null,null,null,null,null,null,null,null,null,null,null,null,null,null,null,69]
[null,null,null,null,null,null,null,null,null,null,null,null,null,null,null,null,null,null,null,null,null,null,null,null,null,69]
[null,null,null,null,null,null,null,null,null,null,null,null,null,null,null,null,null,null,null,null,null,null,null,null,null,69]
[null,null,null,null,null,null,null,null,null,null,null,null,null,null,null,null,null,null,null,null,null,null,null,null,null,69]
[null,null,null,null,null,null,null,null,null,null,null,null,null,null,null,null,null,null,null,null,null,null,null,null,null,69]
[null,null,null,null,null,null,null,null,null,null,null,null,null,null,null,null,null,null,null,null,null,null,null,null,null,69]
[null,null,null,null,null,null,null,null,null,null,null,null,null,null,null,null,null,null,null,null,null,null,null,null,null,69]
[null,null,null,null,null,null,null,null,null,null,null,null,null,null,null,null,null,null,null,null,null,null,null,null,null,69]
[null,null,null,null,null,null,null,null,null,null,null,null,null,null,null,null,null,null,null,null,null,null,null,null,null,69]
[null,null,null,null,null,null,null,null,null,null,null,null,null,null,null,null,null,null,null,null,null,null,null,null,null,69]
[null,null,null,null,null,null,null,null,null,null,null,null,null,null,null,null,null,null,null,null,null,null,null,null,null,69]
[null,null,null,null,null,null,null,null,null,null,null,null,null,null,null,null,null,null,null,null,null,null,null,null,null,69]
[null,null,null,null,null,null,null,null,null,null,null,null,null,null,null,null,null,null,null,null,null,null,null,null,null,69]
[null,null,null,null,null,null,null,null,null,null,null,null,null,null,null,null,null,null,null,null,null,null,null,null,null,69]
[null,null,null,null,null,null,null,null,null,null,null,null,null,null,null,null,null,null,null,null,null,null,null,null,null,69]
[null,null,null,null,null,null,null,null,null,null,null,null,null,null,null,null,null,null,null,null,null,null,null,null,null,69]
[null,null,null,null,null,null,null,null,null,null,null,null,null,null,null,null,null,null,null,null,null,null,null,null,null,69]
[null,null,null,null,null,null,null,null,null,null,null,null,null,null,null,null,null,null,null,null,null,null,null,null,null,69]
[null,null,null,null,null,null,null,null,null,null,null,null,null,null,null,null,null,null,null,null,null,null,null,null,null,69]
[null,null,null,null,null,null,null,null,null,null,null,null,null,null,null,null,null,null,null,null,null,null,null,null,null,69]
[null,null,null,null,null,null,null,null,null,null,null,null,null,null,null,null,null,null,null,null,null,null,null,null,null,69]
[null,null,null,null,null,null,null,null,null,null,null,null,null,null,null,null,null,null,null,null,null,null,null,null,null,69]
[null,null,null,null,null,null,null,null,null,null,null,null,null,null,null,null,null,null,null,null,null,null,null,null,null,69]
[null,null,null,null,null,null,null,null,null,null,null,null,null,null,null,null,null,null,null,null,null,null,null,null,null,69]
[null,null,null,null,null,null,null,null,null,null,null,null,null,null,null,null,null,null,null,null,null,null,null,null,null,69]
[null,null,null,null,null,null,null,null,null,null,null,null,null,null,null,null,null,null,null,null,null,null,null,null,null,69]
[null,null,null,null,null,null,null,null,null,null,null,null,null,null,null,null,null,null,null,null,null,null,null,null,null,69]
[null,null,null,null,null,null,null,null,null,null,null,null,null,null,null,null,null,null,null,null,null,null,null,null,null,69]
[null,null,null,null,null,null,null,null,null,null,null,null,null,null,null,null,null,null,null,null,null,null,null,null,null,69]
[null,null,null,null,null,null,null,null,null,null,null,null,null,null,null,null,null,null,null,null,null,null,null,null,null,69]
[null,null,null,null,null,null,null,null,null,null,null,null,null,null,null,null,null,null,null,null,null,null,null,null,null,69]
[null,null,null,null,null,null,null,null,null,null,null,null,null,null,null,null,null,null,null,null,null,null,null,null,null,69]
[null,null,null,null,null,null,null,null,null,null,null,null,null,null,null,null,null,null,null,null,null,null,null,null,null,69]
[null,null,null,null,null,null,null,null,null,null,null,null,null,null,null,null,null,null,null,null,null,null,null,null,null,69]
[null,null,null,null,null,null,null,null,null,null,null,null,null,null,null,null,null,null,null,null,null,null,null,null,null,69]
[null,null,null,null,null,null,null,null,null,null,null,null,null,null,null,null,null,null,null,null,null,null,null,null,null,69]
[null,null,null,null,null,null,null,null,null,null,null,null,null,null,null,null,null,null,null,null,null,null,null,null,null,69]
[null,null,null,null,null,null,null,null,null,null,null,null,null,null,null,null,null,null,null,null,null,null,null,null,null,69]
[null,null,null,null,null,null,null,null,null,null,null,null,null,null,null,null,null,null,null,null,null,null,null,null,null,69]
[null,null,null,null,null,null,null,null,null,null,null,null,null,null,null,null,null,null,null,null,null,null,null,null,null,69]
[null,null,null,null,null,null,null,null,null,null,null,null,null,null,null,null,null,null,null,null,null,null,null,null,null,69]
[null,null,null,null,null,null,null,null,null,null,null,null,null,null,null,null,null,null,null,null,null,null,null,null,null,69]
[null,null,null,null,null,null,null,null,null,null,null,null,null,null,null,null,null,null,null,null,null,null,null,null,null,69]
[null,null,null,null,null,null,null,null,null,null,null,null,null,null,null,null,null,null,null,null,null,null,null,null,null,69]
[null,null,null,null,null,null,null,null,null,null,null,null,null,null,null,null,null,null,null,null,null,null,null,null,null,69]
[null,null,null,null,null,null,null,null,null,null,null,null,null,null,null,null,null,null,null,null,null,null,null,null,null,69]
[null,null,null,null,null,null,null,null,null,null,null,null,null,null,null,null,null,null,null,null,null,null,null,null,null,69]
[null,null,null,null,null,null,null,null,null,null,null,null,null,null,null,null,null,null,null,null,null,null,null,null,null,69]
[null,null,null,null,null,null,null,null,null,null,null,null,null,null,null,null,null,null,null,null,null,null,null,null,null,69]
[null,null,null,null,null,null,null,null,null,null,null,null,null,null,null,null,null,null,null,null,null,null,null,null,null,69]
[null,null,null,null,null,null,null,null,null,null,null,null,null,null,null,null,null,null,null,null,null,null,null,null,null,69]
[null,null,null,null,null,null,null,null,null,null,null,null,null,null,null,null,null,null,null,null,null,null,null,null,null,69]
[null,null,null,null,null,null,null,null,null,null,null,null,null,null,null,null,null,null,null,null,null,null,null,null,null,69]
[null,null,null,null,null,null,null,null,null,null,null,null,null,null,null,null,null,null,null,null,null,null,null,null,null,69]
[null,null,null,null,null,null,null,null,null,null,null,null,null,null,null,null,null,null,null,null,null,null,null,null,null,69]
[null,null,null,null,null,null,null,null,null,null,null,null,null,null,null,null,null,null,null,null,null,null,null,null,null,69]
[null,null,null,null,null,null,null,null,null,null,null,null,null,null,null,null,null,null,null,null,null,null,null,null,null,69]
[null,null,null,null,null,null,null,null,null,null,null,null,null,null,null,null,null,null,null,null,null,null,null,null,null,69]
[null,null,null,null,null,null,null,null,null,null,null,null,null,null,null,null,null,null,null,null,null,null,null,null,null,69]
[null,null,null,null,null,null,null,null,null,null,null,null,null,null,null,null,null,null,null,null,null,null,null,null,null,69]
[null,null,null,null,null,null,null,null,null,null,null,null,null,null,null,null,null,null,null,null,null,null,null,null,null,69]
[null,null,null,null,null,null,null,null,null,null,null,null,null,null,null,null,null,null,null,null,null,null,null,null,null,69]
[null,null,null,null,null,null,null,null,null,null,null,null,null,null,null,null,null,null,null,null,null,null,null,null,null,69]
[null,null,null,null,null,null,null,null,null,null,null,null,null,null,null,null,null,null,null,null,null,null,null,null,null,69]
[null,null,null,null,null,null,null,null,null,null,null,null,null,null,null,null,null,null,null,null,null,null,null,null,null,69]
[null,null,null,null,null,null,null,null,null,null,null,null,null,null,null,null,null,null,null,null,null,null,null,null,null,69]
[null,null,null,null,null,null,null,null,null,null,null,null,null,null,null,null,null,null,null,null,null,null,null,null,null,69]
[null,null,null,null,null,null,null,null,null,null,null,null,null,null,null,null,null,null,null,null,null,null,null,null,null,69]
[null,null,null,null,null,null,null,null,null,null,null,null,null,null,null,null,null,null,null,null,null,null,null,null,null,69]
[null,null,null,null,null,null,null,null,null,null,null,null,null,null,null,null,null,null,null,null,null,null,null,null,null,69]
[null,null,null,null,null,null,null,null,null,null,null,null,null,null,null,null,null,null,null,null,null,null,null,null,null,69]
[null,null,null,null,null,null,null,null,null,null,null,null,null,null,null,null,null,null,null,null,null,null,null,null,null,69]
[null,null,null,null,null,null,null,null,null,null,null,null,null,null,null,null,null,null,null,null,null,null,null,null,null,69]
[null,null,null,null,null,null,null,null,null,null,null,null,null,null,null,null,null,null,null,null,null,null,null,null,null,69]
[null,null,null,null,null,null,null,null,null,null,null,null,null,null,null,null,null,null,null,null,null,null,null,null,null,69]
[null,null,null,null,null,null,null,null,null,null,null,null,null,null,null,null,null,null,null,null,null,null,null,null,null,69]
[null,null,null,null,null,null,null,null,null,null,null,null,null,null,null,null,null,null,null,null,null,null,null,null,null,69]
[null,null,null,null,null,null,null,null,null,null,null,null,null,null,null,null,null,null,null,null,null,null,null,null,null,69]
[null,null,null,null,null,null,null,null,null,null,null,null,null,null,null,null,null,null,null,null,null,null,null,null,null,69]
[null,null,null,null,null,null,null,null,null,null,null,null,null,null,null,null,null,null,null,null,null,null,null,null,null,69]
[null,null,null,null,null,null,null,null,null,null,null,null,null,null,null,null,null,null,null,null,null,null,null,null,null,69]
[null,null,null,null,null,null,null,null,null,null,null,null,null,null,null,null,null,null,null,null,null,null,null,null,null,69]
[null,null,null,null,null,null,null,null,null,null,null,null,null,null,null,null,null,null,null,null,null,null,null,null,null,69]
[null,null,null,null,null,null,null,null,null,null,null,null,null,null,null,null,null,null,null,null,null,null,null,null,null,69]
[null,null,null,null,null,null,null,null,null,null,null,null,null,null,null,null,null,null,null,null,null,null,null,null,null,69]
[null,null,null,null,null,null,null,null,null,null,null,null,null,null,null,null,null,null,null,null,null,null,null,null,null,69]
[null,null,null,null,null,null,null,null,null,null,null,null,null,null,null,null,null,null,null,null,null,null,null,null,null,69]
[null,null,null,null,null,null,null,null,null,null,null,null,null,null,null,null,null,null,null,null,null,null,null,null,null,69]
[null,null,null,null,null,null,null,null,null,null,null,null,null,null,null,null,null,null,null,null,null,null,null,null,null,69]
[null,null,null,null,null,null,null,null,null,null,null,null,null,null,null,null,null,null,null,null,null,null,null,null,null,69]
[null,null,null,null,null,null,null,null,null,null,null,null,null,null,null,null,null,null,null,null,null,null,null,null,null,69]
[null,null,null,null,null,null,null,null,null,null,null,null,null,null,null,null,null,null,null,null,null,null,null,null,null,69]

{"sheet":"Validaciones","index":1,"n_rows":7,"n_cols":21,"rows_kept":7,"cut":false,"hidden":false,"merged":[]}
["Obligatorio_TD","Largo_TD","Contenido_TD","Obligatorio_ND","Largo_ND","Contenido_ND","Obligatorio_AP","Largo_AP","Contenido_AP","Obligatorio_AM","Largo_AM","Contenido_AM","Obligatorio_PN","Largo_PN","Contenido_PN","Obligatorio_SN","Largo_SN","Contenido_SN","Obligatorio_N","Largo_N","Contenido_N"]
[null,null,null,null,null,null,null,null,null,null,null,null,null,null,null,null,null,null,null,null,"Campos obligatorios incompletos."]
[null,null,null,null,null,null,null,null,null,null,null,null,null,null,null,null,null,null,null,null,"Campos obligatorios incompletos."]
[null,null,null,null,null,null,null,null,null,null,null,null,null,null,null,null,null,null,null,null,"Campos obligatorios incompletos."]
[null,null,null,null,null,null,null,null,null,null,null,null,null,null,null,null,null,null,null,null,"Campos obligatorios incompletos."]
[null,null,null,null,null,null,null,null,null,null,null,null,null,null,null,null,null,null,null,null,"Campos obligatorios incompletos."]
[null,null,null,null,null,null,null,null,null,null,null,null,null,null,null,null,null,null,null,null,"Campos obligatorios incompletos."]

{"sheet":"Fecha","index":2,"n_rows":501,"n_cols":12,"rows_kept":501,"cut":false,"hidden":false,"merged":[]}
["FECHA DE NACIMIENTO\n\nCelda tipo FECHA\nSolo procesa formato DD/MM/YYYY"]
[0,{"$f":"IF(A2=0,\"\",A2*1)","v":""},{"$f":"IF(B2=\"\",\"\",IFERROR(B2,TEXT(A2,\"dd/mm/yyyy\")))","v":""},{"$f":"IFERROR(C2,LEFT(A2, FIND(\"/\",A2) - 1))","v":""},{"$f":"IFERROR(C2,MID(A2,FIND(\"/\",A2) + 1, FIND(\"/\", A2, FIND(\"/\", A2) + 1) - FIND(\"/\", A2) - 1))","v":""},{"$f":"IFERROR(C2,RIGHT(A2, LEN(A2) - FIND(\"/\", A2, FIND(\"/\", A2) + 1)))","v":""},{"$f":"TEXT(IFERROR(CONCATENATE(IFERROR(DATE(F2,D2,E2),C2))*1,\"\"),\"dd/mm/yyyy\")","v":""},null,null,"1992-01-01","1 de enero","1 de enero"]
[0,{"$f":"IF(A3=0,\"\",A3*1)","v":""},{"$f":"IF(B3=\"\",\"\",IFERROR(B3,TEXT(A3,\"dd/mm/yyyy\")))","v":""},{"$f":"IFERROR(C3,LEFT(A3, FIND(\"/\",A3) - 1))","v":""},{"$f":"IFERROR(C3,MID(A3,FIND(\"/\",A3) + 1, FIND(\"/\", A3, FIND(\"/\", A3) + 1) - FIND(\"/\", A3) - 1))","v":""},{"$f":"IFERROR(C3,RIGHT(A3, LEN(A3) - FIND(\"/\", A3, FIND(\"/\", A3) + 1)))","v":""},{"$f":"TEXT(IFERROR(CONCATENATE(IFERROR(DATE(F3,D3,E3),C3))*1,\"\"),\"dd/mm/yyyy\")","v":""},null,null,{"$f":"J2+1","v":"1992-01-02"},"2 de enero","1 de febrero"]
[0,"","","",{"$f":"IFERROR(C4,MID(A4,FIND(\"/\",A4) + 1, FIND(\"/\", A4, FIND(\"/\", A4) + 1) - FIND(\"/\", A4) - 1))","v":""},{"$f":"IFERROR(C4,RIGHT(A4, LEN(A4) - FIND(\"/\", A4, FIND(\"/\", A4) + 1)))","v":""},"","",null,{"$f":"J3+1","v":"1992-01-03"},"3 de enero","1 de marzo"]
[0,"","","","",{"$f":"IFERROR(C5,RIGHT(A5, LEN(A5) - FIND(\"/\", A5, FIND(\"/\", A5) + 1)))","v":""},"","",null,"1992-01-04","4 de enero","1 de abril"]
[0,"","","","","","","",null,"1992-01-05","5 de enero","1 de mayo"]
[0,"","","",{"$f":"IFERROR(C7,MID(A7,FIND(\"/\",A7) + 1, FIND(\"/\", A7, FIND(\"/\", A7) + 1) - FIND(\"/\", A7) - 1))","v":""},"","","",null,"1992-01-06","6 de enero","1 de junio"]
[0,"","","","","","","",null,"1992-01-07","7 de enero","1 de julio"]
[0,"","","",{"$f":"IFERROR(C9,MID(A9,FIND(\"/\",A9) + 1, FIND(\"/\", A9, FIND(\"/\", A9) + 1) - FIND(\"/\", A9) - 1))","v":""},"","","",null,"1992-01-08","8 de enero","1 de agosto"]
[0,"","","","","","","",null,"1992-01-09","9 de enero","1 de septiembre"]
[0,"","","","","","","",null,"1992-01-10","10 de enero","1 de octubre"]
[0,"","","","","","","",null,"1992-01-11","11 de enero","1 de noviembre"]
[0,"","","","","","","",null,"1992-01-12","12 de enero","1 de diciembre"]
[0,"","","","","","",""]
[0,"","","","","","",""]
[0,"","","","","","",""]
[0,"","","","","","",""]
[0,"","","","","","",""]
[0,"","","","","","",""]
[0,"","","","","","",""]
[0,"","","","","","",""]
[0,"","","","","","",""]
[0,"","","","","","",""]
[0,"","","","","","",""]
[0,"","","","","","",""]
[0,"","","","","","",""]
[0,"","","","","","",""]
[0,"","","","","","",""]
[0,"","","","","","",""]
[0,"","","","","","",""]
[0,"","","","","","",""]
[0,"","","","","","",""]
[0,"","","","","","",""]
[0,"","","","","","",""]
[0,"","","","","","",""]
[0,"","","","","","",""]
[0,"","","","","","",""]
[0,"","","","","","",""]
[0,"","","","","","",""]
[0,"","","","","","",""]
[0,"","","","","","",""]
[0,"","","","","","",""]
[0,"","","","","","",""]
[0,"","","","","","",""]
[0,"","","","","","",""]
[0,"","","","","","",""]
[0,"","","","","","",""]
[0,"","","","","","",""]
[0,"","","","","","",""]
[0,"","","","","","",""]
[0,"","","","","","",""]
[0,"","","","","","",""]
[0,"","","","","","",""]
[0,"","","","","","",""]
[0,"","","","","","",""]
[0,"","","","","","",""]
[0,"","","","","","",""]
[0,"","","","","","",""]
[0,"","","","","","",""]
[0,"","","","","","",""]
[0,"","","","","","",""]
[0,"","","","","","",""]
[0,"","","","","","",""]
[0,"","","","","","",""]
[0,"","","","","","",""]
[0,"","","","","",{"$f":"TEXT(IFERROR(CONCATENATE(IFERROR(DATE(F66,D66,E66),C66))*1,\"\"),\"dd/mm/yyyy\")","v":""},""]
[0,{"$f":"IF(A67=0,\"\",A67*1)","v":""},{"$f":"IF(B67=\"\",\"\",IFERROR(B67,TEXT(A67,\"dd/mm/yyyy\")))","v":""},{"$f":"IFERROR(C67,LEFT(A67, FIND(\"/\",A67) - 1))","v":""},{"$f":"IFERROR(C67,MID(A67,FIND(\"/\",A67) + 1, FIND(\"/\", A67, FIND(\"/\", A67) + 1) - FIND(\"/\", A67) - 1))","v":""},{"$f":"IFERROR(C67,RIGHT(A67, LEN(A67) - FIND(\"/\", A67, FIND(\"/\", A67) + 1)))","v":""},"",""]
[0,"","","","","","",""]
[0,"","","","","","",""]
[0,"","","","","","",""]
[0,"","","","","","",""]
[0,"","","","","","",""]
[0,"","","","","","",""]
[0,"","","","","","",""]
[0,"","","","","","",""]
[0,"","","","","","",""]
[0,"","","","","","",""]
[0,"","","","","","",""]
[0,"","","","","","",""]
[0,"","","","","","",""]
[0,"","","","","","",""]
[0,"","","","","","",""]
[0,"","","","","","",""]
[0,"","","","","","",""]
[0,"","","","","","",""]
[0,"","","","","","",""]
[0,"","","","","","",""]
[0,"","","","","","",""]
[0,"","","","","","",""]
[0,"","","","","","",""]
[0,"","","","","","",""]
[0,"","","","","","",""]
[0,"","","","","","",""]
[0,"","","","","","",""]
[0,"","","","","","",""]
[0,"","","","","","",""]
[0,"","","","","","",""]
[0,"","","","","","",""]
[0,"","","","","","",""]
[0,"","","","","","",""]
[0,"","","","","","",""]
[0,"","","","","","",""]
[0,"","","","","","",""]
[0,"","","","","","",""]
[0,"","","","","","",""]
[0,"","","","","","",""]
[0,"","","","","","",""]
[0,"","","","","","",""]
[0,"","","","","","",""]
[0,"","","","","","",""]
[0,"","","","","","",""]
[0,"","","","","","",""]
[0,"","","","","","",""]
[0,"","","","","","",""]
[0,"","","","","","",""]
[0,"","","","","","",""]
[0,"","","","","","",""]
[0,"","","","","","",""]
[0,"","","","","","",""]
[0,"","","","","","",""]
[0,"","","","","","",""]
[0,"","","","","","",""]
[0,"","","","","","",""]
[0,"","","","","","",""]
[0,"","","","","","",""]
[0,"","","","","","",""]
[0,"","","","","","",""]
[0,"","","","","","",""]
[0,"","","","","","",""]
[0,"","","","","",{"$f":"TEXT(IFERROR(CONCATENATE(IFERROR(DATE(F130,D130,E130),C130))*1,\"\"),\"dd/mm/yyyy\")","v":""},""]
[0,{"$f":"IF(A131=0,\"\",A131*1)","v":""},{"$f":"IF(B131=\"\",\"\",IFERROR(B131,TEXT(A131,\"dd/mm/yyyy\")))","v":""},{"$f":"IFERROR(C131,LEFT(A131, FIND(\"/\",A131) - 1))","v":""},{"$f":"IFERROR(C131,MID(A131,FIND(\"/\",A131) + 1, FIND(\"/\", A131, FIND(\"/\", A131) + 1) - FIND(\"/\", A131) - 1))","v":""},{"$f":"IFERROR(C131,RIGHT(A131, LEN(A131) - FIND(\"/\", A131, FIND(\"/\", A131) + 1)))","v":""},"",""]
[0,"","","","","","",""]
[0,"","","","","","",""]
[0,"","","","","","",""]
[0,"","","","","","",""]
[0,"","","","","","",""]
[0,"","","","","","",""]
[0,"","","","","","",""]
[0,"","","","","","",""]
[0,"","","","","","",""]
[0,"","","","","","",""]
[0,"","","","","","",""]
[0,"","","","","","",""]
[0,"","","","","","",""]
[0,"","","","","","",""]
[0,"","","","","","",""]
[0,"","","","","","",""]
[0,"","","","","","",""]
[0,"","","","","","",""]
[0,"","","","","","",""]
[0,"","","","","","",""]
[0,"","","","","","",""]
[0,"","","","","","",""]
[0,"","","","","","",""]
[0,"","","","","","",""]
[0,"","","","","","",""]
[0,"","","","","","",""]
[0,"","","","","","",""]
[0,"","","","","","",""]
[0,"","","","","","",""]
[0,"","","","","","",""]
[0,"","","","","","",""]
[0,"","","","","","",""]
[0,"","","","","","",""]
[0,"","","","","","",""]
[0,"","","","","","",""]
[0,"","","","","","",""]
[0,"","","","","","",""]
[0,"","","","","","",""]
[0,"","","","","","",""]
[0,"","","","","","",""]
[0,"","","","","","",""]
[0,"","","","","","",""]
[0,"","","","","","",""]
[0,"","","","","","",""]
[0,"","","","","","",""]
[0,"","","","","","",""]
[0,"","","","","","",""]
[0,"","","","","","",""]
[0,"","","","","","",""]
[0,"","","","","","",""]
[0,"","","","","","",""]
[0,"","","","","","",""]
[0,"","","","","","",""]
[0,"","","","","","",""]
[0,"","","","","","",""]
[0,"","","","","","",""]
[0,"","","","","","",""]
[0,"","","","","","",""]
[0,"","","","","","",""]
[0,"","","","","","",""]
[0,"","","","","","",""]
[0,"","","","","","",""]
[0,"","","","","",{"$f":"TEXT(IFERROR(CONCATENATE(IFERROR(DATE(F194,D194,E194),C194))*1,\"\"),\"dd/mm/yyyy\")","v":""},""]
[0,{"$f":"IF(A195=0,\"\",A195*1)","v":""},{"$f":"IF(B195=\"\",\"\",IFERROR(B195,TEXT(A195,\"dd/mm/yyyy\")))","v":""},{"$f":"IFERROR(C195,LEFT(A195, FIND(\"/\",A195) - 1))","v":""},{"$f":"IFERROR(C195,MID(A195,FIND(\"/\",A195) + 1, FIND(\"/\", A195, FIND(\"/\", A195) + 1) - FIND(\"/\", A195) - 1))","v":""},{"$f":"IFERROR(C195,RIGHT(A195, LEN(A195) - FIND(\"/\", A195, FIND(\"/\", A195) + 1)))","v":""},"",""]
[0,"","","","","","",""]
[0,"","","","","","",""]
[0,"","","","","","",""]
[0,"","","","","","",""]
[0,"","","","","","",""]
[0,"","","","","","",""]
[0,"","","","","","",""]
[0,"","","","","","",""]
[0,"","","","","","",""]
[0,"","","","","","",""]
[0,"","","","","","",""]
[0,"","","","","","",""]
[0,"","","","","","",""]
[0,"","","","","","",""]
[0,"","","","","","",""]
[0,"","","","","","",""]
[0,"","","","","","",""]
[0,"","","","","","",""]
[0,"","","","","","",""]
[0,"","","","","","",""]
[0,"","","","","","",""]
[0,"","","","","","",""]
[0,"","","","","","",""]
[0,"","","","","","",""]
[0,"","","","","","",""]
[0,"","","","","","",""]
[0,"","","","","","",""]
[0,"","","","","","",""]
[0,"","","","","","",""]
[0,"","","","","","",""]
[0,"","","","","","",""]
[0,"","","","","","",""]
[0,"","","","","","",""]
[0,"","","","","","",""]
[0,"","","","","","",""]
[0,"","","","","","",""]
[0,"","","","","","",""]
[0,"","","","","","",""]
[0,"","","","","","",""]
[0,"","","","","","",""]
[0,"","","","","","",""]
[0,"","","","","","",""]
[0,"","","","","","",""]
[0,"","","","","","",""]
[0,"","","","","","",""]
[0,"","","","","","",""]
[0,"","","","","","",""]
[0,"","","","","","",""]
[0,"","","","","","",""]
[0,"","","","","","",""]
[0,"","","","","","",""]
[0,"","","","","","",""]
[0,"","","","","","",""]
[0,"","","","","","",""]
[0,"","","","","","",""]
[0,"","","","","","",""]
[0,"","","","","","",""]
[0,"","","","","","",""]
[0,"","","","","","",""]
[0,"","","","","","",""]
[0,"","","","","","",""]
[0,"","","","","","",""]
[0,"","","","","",{"$f":"TEXT(IFERROR(CONCATENATE(IFERROR(DATE(F258,D258,E258),C258))*1,\"\"),\"dd/mm/yyyy\")","v":""},""]
[0,{"$f":"IF(A259=0,\"\",A259*1)","v":""},{"$f":"IF(B259=\"\",\"\",IFERROR(B259,TEXT(A259,\"dd/mm/yyyy\")))","v":""},{"$f":"IFERROR(C259,LEFT(A259, FIND(\"/\",A259) - 1))","v":""},{"$f":"IFERROR(C259,MID(A259,FIND(\"/\",A259) + 1, FIND(\"/\", A259, FIND(\"/\", A259) + 1) - FIND(\"/\", A259) - 1))","v":""},{"$f":"IFERROR(C259,RIGHT(A259, LEN(A259) - FIND(\"/\", A259, FIND(\"/\", A259) + 1)))","v":""},"",""]
[0,"","","","","","",""]
[0,"","","","","","",""]
[0,"","","","","","",""]
[0,"","","","","","",""]
[0,"","","","","","",""]
[0,"","","","","","",""]
[0,"","","","","","",""]
[0,"","","","","","",""]
[0,"","","","","","",""]
[0,"","","","","","",""]
[0,"","","","","","",""]
[0,"","","","","","",""]
[0,"","","","","","",""]
[0,"","","","","","",""]
[0,"","","","","","",""]
[0,"","","","","","",""]
[0,"","","","","","",""]
[0,"","","","","","",""]
[0,"","","","","","",""]
[0,"","","","","","",""]
[0,"","","","","","",""]
[0,"","","","","","",""]
[0,"","","","","","",""]
[0,"","","","","","",""]
[0,"","","","","","",""]
[0,"","","","","","",""]
[0,"","","","","","",""]
[0,"","","","","","",""]
[0,"","","","","","",""]
[0,"","","","","","",""]
[0,"","","","","","",""]
[0,"","","","","","",""]
[0,"","","","","","",""]
[0,"","","","","","",""]
[0,"","","","","","",""]
[0,"","","","","","",""]
[0,"","","","","","",""]
[0,"","","","","","",""]
[0,"","","","","","",""]
[0,"","","","","","",""]
[0,"","","","","","",""]
[0,"","","","","","",""]
[0,"","","","","","",""]
[0,"","","","","","",""]
[0,"","","","","","",""]
[0,"","","","","","",""]
[0,"","","","","","",""]
[0,"","","","","","",""]
[0,"","","","","","",""]
[0,"","","","","","",""]
[0,"","","","","","",""]
[0,"","","","","","",""]
[0,"","","","","","",""]
[0,"","","","","","",""]
[0,"","","","","","",""]
[0,"","","","","","",""]
[0,"","","","","","",""]
[0,"","","","","","",""]
[0,"","","","","","",""]
[0,"","","","","","",""]
[0,"","","","","","",""]
[0,"","","","","","",""]
[0,"","","","","",{"$f":"TEXT(IFERROR(CONCATENATE(IFERROR(DATE(F322,D322,E322),C322))*1,\"\"),\"dd/mm/yyyy\")","v":""},""]
[0,{"$f":"IF(A323=0,\"\",A323*1)","v":""},{"$f":"IF(B323=\"\",\"\",IFERROR(B323,TEXT(A323,\"dd/mm/yyyy\")))","v":""},{"$f":"IFERROR(C323,LEFT(A323, FIND(\"/\",A323) - 1))","v":""},{"$f":"IFERROR(C323,MID(A323,FIND(\"/\",A323) + 1, FIND(\"/\", A323, FIND(\"/\", A323) + 1) - FIND(\"/\", A323) - 1))","v":""},{"$f":"IFERROR(C323,RIGHT(A323, LEN(A323) - FIND(\"/\", A323, FIND(\"/\", A323) + 1)))","v":""},"",""]
[0,"","","","","","",""]
[0,"","","","","","",""]
[0,"","","","","","",""]
[0,"","","","","","",""]
[0,"","","","","","",""]
[0,"","","","","","",""]
[0,"","","","","","",""]
[0,"","","","","","",""]
[0,"","","","","","",""]
[0,"","","","","","",""]
[0,"","","","","","",""]
[0,"","","","","","",""]
[0,"","","","","","",""]
[0,"","","","","","",""]
[0,"","","","","","",""]
[0,"","","","","","",""]
[0,"","","","","","",""]
[0,"","","","","","",""]
[0,"","","","","","",""]
[0,"","","","","","",""]
[0,"","","","","","",""]
[0,"","","","","","",""]
[0,"","","","","","",""]
[0,"","","","","","",""]
[0,"","","","","","",""]
[0,"","","","","","",""]
[0,"","","","","","",""]
[0,"","","","","","",""]
[0,"","","","","","",""]
[0,"","","","","","",""]
[0,"","","","","","",""]
[0,"","","","","","",""]
[0,"","","","","","",""]
[0,"","","","","","",""]
[0,"","","","","","",""]
[0,"","","","","","",""]
[0,"","","","","","",""]
[0,"","","","","","",""]
[0,"","","","","","",""]
[0,"","","","","","",""]
[0,"","","","","","",""]
[0,"","","","","","",""]
[0,"","","","","","",""]
[0,"","","","","","",""]
[0,"","","","","","",""]
[0,"","","","","","",""]
[0,"","","","","","",""]
[0,"","","","","","",""]
[0,"","","","","","",""]
[0,"","","","","","",""]
[0,"","","","","","",""]
[0,"","","","","","",""]
[0,"","","","","","",""]
[0,"","","","","","",""]
[0,"","","","","","",""]
[0,"","","","","","",""]
[0,"","","","","","",""]
[0,"","","","","","",""]
[0,"","","","","","",""]
[0,"","","","","","",""]
[0,"","","","","","",""]
[0,"","","","","","",""]
[0,"","","","","",{"$f":"TEXT(IFERROR(CONCATENATE(IFERROR(DATE(F386,D386,E386),C386))*1,\"\"),\"dd/mm/yyyy\")","v":""},""]
[0,{"$f":"IF(A387=0,\"\",A387*1)","v":""},{"$f":"IF(B387=\"\",\"\",IFERROR(B387,TEXT(A387,\"dd/mm/yyyy\")))","v":""},{"$f":"IFERROR(C387,LEFT(A387, FIND(\"/\",A387) - 1))","v":""},{"$f":"IFERROR(C387,MID(A387,FIND(\"/\",A387) + 1, FIND(\"/\", A387, FIND(\"/\", A387) + 1) - FIND(\"/\", A387) - 1))","v":""},{"$f":"IFERROR(C387,RIGHT(A387, LEN(A387) - FIND(\"/\", A387, FIND(\"/\", A387) + 1)))","v":""},"",""]
[0,"","","","","","",""]
[0,"","","","","","",""]
[0,"","","","","","",""]
[0,"","","","","","",""]
[0,"","","","","","",""]
[0,"","","","","","",""]
[0,"","","","","","",""]
[0,"","","","","","",""]
[0,"","","","","","",""]
[0,"","","","","","",""]
[0,"","","","","","",""]
[0,"","","","","","",""]
[0,"","","","","","",""]
[0,"","","","","","",""]
[0,"","","","","","",""]
[0,"","","","","","",""]
[0,"","","","","","",""]
[0,"","","","","","",""]
[0,"","","","","","",""]
[0,"","","","","","",""]
[0,"","","","","","",""]
[0,"","","","","","",""]
[0,"","","","","","",""]
[0,"","","","","","",""]
[0,"","","","","","",""]
[0,"","","","","","",""]
[0,"","","","","","",""]
[0,"","","","","","",""]
[0,"","","","","","",""]
[0,"","","","","","",""]
[0,"","","","","","",""]
[0,"","","","","","",""]
[0,"","","","","","",""]
[0,"","","","","","",""]
[0,"","","","","","",""]
[0,"","","","","","",""]
[0,"","","","","","",""]
[0,"","","","","","",""]
[0,"","","","","","",""]
[0,"","","","","","",""]
[0,"","","","","","",""]
[0,"","","","","","",""]
[0,"","","","","","",""]
[0,"","","","","","",""]
[0,"","","","","","",""]
[0,"","","","","","",""]
[0,"","","","","","",""]
[0,"","","","","","",""]
[0,"","","","","","",""]
[0,"","","","","","",""]
[0,"","","","","","",""]
[0,"","","","","","",""]
[0,"","","","","","",""]
[0,"","","","","","",""]
[0,"","","","","","",""]
[0,"","","","","","",""]
[0,"","","","","","",""]
[0,"","","","","","",""]
[0,"","","","","","",""]
[0,"","","","","","",""]
[0,"","","","","","",""]
[0,"","","","","","",""]
[0,"","","","","",{"$f":"TEXT(IFERROR(CONCATENATE(IFERROR(DATE(F450,D450,E450),C450))*1,\"\"),\"dd/mm/yyyy\")","v":""},""]
[0,{"$f":"IF(A451=0,\"\",A451*1)","v":""},{"$f":"IF(B451=\"\",\"\",IFERROR(B451,TEXT(A451,\"dd/mm/yyyy\")))","v":""},{"$f":"IFERROR(C451,LEFT(A451, FIND(\"/\",A451) - 1))","v":""},{"$f":"IFERROR(C451,MID(A451,FIND(\"/\",A451) + 1, FIND(\"/\", A451, FIND(\"/\", A451) + 1) - FIND(\"/\", A451) - 1))","v":""},{"$f":"IFERROR(C451,RIGHT(A451, LEN(A451) - FIND(\"/\", A451, FIND(\"/\", A451) + 1)))","v":""},"",""]
[0,"","","","","","",""]
[0,"","","","","","",""]
[0,"","","","","","",""]
[0,"","","","","","",""]
[0,"","","","","","",""]
[0,"","","","","","",""]
[0,"","","","","","",""]
[0,"","","","","","",""]
[0,"","","","","","",""]
[0,"","","","","","",""]
[0,"","","","","","",""]
[0,"","","","","","",""]
[0,"","","","","","",""]
[0,"","","","","","",""]
[0,"","","","","","",""]
[0,"","","","","","",""]
[0,"","","","","","",""]
[0,"","","","","","",""]
[0,"","","","","","",""]
[0,"","","","","","",""]
[0,"","","","","","",""]
[0,"","","","","","",""]
[0,"","","","","","",""]
[0,"","","","","","",""]
[0,"","","","","","",""]
[0,"","","","","","",""]
[0,"","","","","","",""]
[0,"","","","","","",""]
[0,"","","","","","",""]
[0,"","","","","","",""]
[0,"","","","","","",""]
[0,"","","","","","",""]
[0,"","","","","","",""]
[0,"","","","","","",""]
[0,"","","","","","",""]
[0,"","","","","","",""]
[0,"","","","","","",""]
[0,"","","","","","",""]
[0,"","","","","","",""]
[0,"","","","","","",""]
[0,"","","","","","",""]
[0,"","","","","","",""]
[0,"","","","","","",""]
[0,"","","","","",{"$f":"TEXT(IFERROR(CONCATENATE(IFERROR(DATE(F495,D495,E495),C495))*1,\"\"),\"dd/mm/yyyy\")","v":""},""]
[0,"","","","","","",""]
[0,"","","","","","",""]
[0,"","","","","","",""]
[0,"","","","","","",""]
[0,"","","","","","",""]
[0,"","","","","","",""]